bitfinex-derivatives/quotes_ETHF0:USTF0_20251013
["timestamp","ask_amount","ask_price","bid_price","bid_amount"]
[1760383805326,0.4178,4250.2,4250.1,0.42313]
[1760383805530,3.42599811,4250.2,4250.1,0.42313]
[1760383807526,3.42599811,4250.2,4249.8,3.2078]
[1760383807727,3.42599811,4250.2,4249.3,3.2078]
[1760383807728,0.1622,4250.0,4249.3,3.2078]
[1760383807924,0.4178,4248.9,4248.8,3.2078]
[1760383808330,0.4178,4248.4,4248.3,0.42331]
[1760383811038,0.58,4249.0,4248.9,0.42325]
[1760383811333,0.1622,4249.5,4249.4,0.4232]
[1760383811734,0.58,4250.0,4249.9,0.42315]
[1760383812132,4.2103298,4250.0,4249.9,0.42315]
[1760383812337,3.67497963,4250.0,4249.9,0.42315]
[1760383814639,4.09812963,4250.0,4249.7,0.42317]
[1760383814830,0.4178,4249.2,4249.1,2.78465]
[1760383815134,0.3825,4248.9,4248.8,0.42326]
[1760383815530,0.3825,4248.9,4248.4,3.2078]
[1760383815736,0.544,4248.5,4248.4,3.2078]
[1760383816133,3.57453417,4248.5,4248.4,3.2078]
[1760383816337,3.81453417,4248.5,4248.4,3.2078]
[1760383816529,0.1615,4248.0,4247.8,0.42336]
[1760383816734,0.3825,4247.9,4247.8,3.63116]
[1760383816938,3.03053417,4247.9,4247.8,3.63116]
[1760383817235,0.3825,4248.9,4248.8,0.42326]
[1760383818142,0.3825,4248.8,4248.7,0.42327]
[1760383818537,3.44195052,4248.8,4248.7,0.42327]
[1760383819837,3.68195052,4248.8,4248.7,0.42327]
[1760383820744,3.05945052,4248.8,4248.7,0.42327]
[1760383820938,3.44195052,4248.8,4248.7,0.42327]
[1760383821140,0.1622,4249.0,4248.9,0.42325]
[1760383821329,0.1622,4249.0,4248.5,3.2078]
[1760383821330,3.2078,4249.7,4249.4,0.4232]
[1760383821534,0.3825,4249.4,4249.2,0.42321]
[1760383821734,3.38747521,4249.4,4249.3,0.42321]
[1760383821938,0.58475,4249.0,4248.5,3.2078]
[1760383822136,0.42326,4248.9,4248.5,3.2078]
[1760383822335,0.3825,4248.8,4248.7,0.42327]
[1760383822741,3.47131155,4248.8,4248.7,0.42327]
[1760383824233,0.1615,4249.0,4248.9,0.42325]
[1760383824432,0.544,4249.5,4249.4,0.4232]
[1760383824638,1.07981317,4249.5,4249.4,0.4232]
[1760383824838,3.62483345,4249.5,4249.4,0.4232]
[1760383825235,0.544,4249.5,4249.4,0.4232]
[1760383825441,0.544,4250.0,4249.9,0.42315]
[1760383825746,4.43483661,4250.0,4249.9,0.42315]
[1760383826044,4.19483661,4250.0,4249.9,0.42315]
[1760383826240,0.1615,4249.5,4249.1,3.2078]
[1760383826547,0.3825,4249.2,4249.1,0.42323]
[1760383826744,0.544,4249.0,4248.9,0.42324]
[1760383826944,0.784,4249.0,4248.9,0.42324]
[1760383827243,0.544,4248.5,4248.4,3.6311]
[1760383832640,0.96729,4248.5,4248.4,0.4233]
[1760383832841,0.544,4248.5,4248.4,0.4233]
[1760383833742,0.1615,4248.0,4247.9,3.2078]
[1760383833944,0.544,4248.0,4247.9,3.2078]
[1760383834141,3.28648493,4248.0,4247.9,0.42335]
[1760383834946,3.12498493,4248.0,4247.9,0.42335]
[1760383835149,0.3825,4248.8,4248.7,0.42327]
[1760383835350,0.91862216,4248.8,4248.7,0.42327]
[1760383835549,3.92055727,4248.8,4248.7,0.42327]
[1760383837643,4.16055727,4248.8,4248.7,0.42327]
[1760383838248,3.92055727,4248.8,4248.7,0.42327]
[1760383838447,4.16055727,4248.8,4248.7,0.42327]
[1760383838651,3.62443511,4248.8,4248.7,0.42327]
[1760383838851,4.15573511,4248.8,4248.7,0.42327]
[1760383839053,4.69156253,4248.8,4248.7,0.42327]
[1760383839352,4.15573511,4248.8,4248.7,0.42327]
[1760383840947,4.15573511,4248.8,4248.5,0.42329]
[1760383840948,0.9138,4248.6,4248.5,0.42329]
[1760383841253,4.55748578,4248.6,4248.5,0.42329]
[1760383841456,4.02162456,4248.6,4248.5,0.42329]
[1760383841843,4.55745222,4248.6,4248.5,0.42329]
[1760383842351,0.6493,4247.9,4247.8,0.42336]
[1760383842655,0.3825,4247.4,4246.9,1.25794191]
[1760383842955,0.3825,4246.8,4246.7,3.2078]
[1760383843146,0.3825,4246.8,4246.6,0.42348]
[1760383843147,0.24,4246.8,4246.6,0.42348]
[1760383843348,0.24,4246.8,4246.3,0.42351]
[1760383843349,0.3825,4246.4,4246.3,0.42351]
[1760383843547,0.6225,4246.4,4246.3,0.42351]
[1760383843755,3.68492462,4246.4,4246.3,0.42351]
[1760383844053,3.68781468,4246.4,4246.3,0.42645713]
[1760383844250,0.42351,4246.3,4246.2,3.2078]
[1760383844448,0.80601,4246.3,4246.2,3.2078]
[1760383844644,0.1615,4246.0,4245.7,3.2078]
[1760383844846,0.6225,4245.9,4245.8,0.42356]
[1760383845052,3.63354688,4245.9,4245.8,0.42356]
[1760383845454,3.63354688,4245.9,4245.8,0.00305801]
[1760383846056,7.37628745,4245.9,4245.8,0.00305801]
[1760383846252,0.1586,4245.0,4244.9,0.42365]
[1760383846553,3.59003697,4245.0,4244.9,0.42365]
[1760383846751,3.20223697,4245.0,4244.2,3.4478]
[1760383846957,3.20223697,4245.0,4244.4,0.4237]
[1760383846958,0.5464,4244.5,4244.4,0.4237]
[1760383847251,0.5464,4244.5,4244.4,0.42576304]
[1760383849752,0.24,4244.6,4244.4,0.42576304]
[1760383849953,3.2078,4245.9,4245.5,0.3889]
[1760383850152,3.21069006,4246.4,4245.8,0.42356]
[1760383850353,3.34518031,4245.9,4245.8,0.42356]
[1760383850954,3.10518031,4245.9,4245.8,0.42356]
[1760383851856,3.49168031,4245.9,4245.8,0.42356]
[1760383852756,6e-08,4246.4,4246.3,0.81241]
[1760383853156,3.2078,4247.6,4247.4,0.4234]
[1760383853556,3.2078,4248.4,4248.3,0.42331]
[1760383853858,6.58023273,4248.4,4248.3,0.42331]
[1760383854058,6.58023273,4248.4,4248.3,0.42521055]
[1760383854059,6.58244554,4248.4,4248.3,0.42521055]
[1760383854255,6.34244554,4248.4,4248.3,0.42521055]
[1760383854454,3.37464554,4248.4,4248.3,0.81411055]
[1760383855160,3.13464554,4248.4,4248.3,0.81411055]
[1760383857063,3.52114554,4248.4,4248.3,0.42521055]
[1760383857863,3.52114554,4248.4,4248.3,3.63301055]
[1760383858170,3.37464554,4248.4,4248.3,4.02191055]
[1760383858362,3.76114554,4248.4,4248.3,4.02191055]
[1760383858562,3.37464554,4248.4,4248.3,4.02191055]
[1760383859562,0.00221281,4248.4,4248.3,4.02191055]
[1760383862068,3.2078,4249.4,4249.3,0.42321]
[1760383862264,3.8343,4249.4,4249.3,0.81211]
[1760383862570,6.91943467,4249.4,4249.3,0.42321]
[1760383862964,3.47374789,4249.4,4249.3,0.42321]
[1760383863172,3.71374789,4249.4,4249.3,0.42321]
[1760383863367,3.08724789,4249.4,4249.3,0.81211]
[1760383863665,0.00211322,4249.4,4249.3,0.81211]
[1760383863968,0.3865,4250.5,4250.0,0.1532]
[1760383864167,0.3865,4250.3,4250.2,0.42312]
[1760383864469,3.70642242,4250.3,4250.2,0.42312]
[1760383864670,3.46642242,4250.3,4250.2,0.42312]
[1760383864965,3.08199484,4250.3,4250.2,0.81202]
[1760383865173,0.00207242,4250.3,4250.2,0.81202]
[1760383866675,3.2078,4251.9,4251.7,0.42297]
[1760383866870,3.5943,4251.9,4251.8,0.3889]
[1760383867172,0.3865,4252.4,4252.3,0.42291]
[1760383867369,0.6265,4252.4,4252.3,0.42291]
[1760383867568,3.23807298,4252.4,4252.3,4.02181704]
[1760383867768,0.00205892,4252.4,4252.3,4.02181704]
[1760383868167,2.99807298,4252.4,4252.3,4.02181704]
[1760383868763,3.38457298,4252.4,4252.3,3.21000704]
[1760383868969,3.38457298,4252.4,4252.3,0.00220704]
[1760383869268,3.38457298,4252.4,4252.3,0.39110704]
[1760383869868,2.99807298,4252.4,4252.3,0.39110704]
[1760383870573,2.99807298,4252.4,4252.3,3.59890704]
[1760383871875,3.38457298,4252.4,4252.3,3.59890704]
[1760383872268,2.99807298,4252.4,4252.3,3.59890704]
[1760383872772,3.80747298,4252.4,4252.3,0.00220704]
[1760383873082,3.38457298,4252.4,4252.3,0.00220704]
[1760383873271,2.99807298,4252.4,4252.3,0.39110704]
[1760383876077,0.00205892,4252.4,4252.3,3.59890704]
[1760383876970,3.38514746,4252.4,4252.3,3.59890704]
[1760383877665,3.00704746,4252.4,4252.3,3.59890704]
[1760383877867,3.62514746,4252.4,4252.3,0.00220704]
[1760383878573,0.5394,4252.0,4251.3,0.42301]
[1760383878780,0.3781,4251.8,4251.3,0.42301]
[1760383878972,0.3781,4251.8,4251.4,0.423]
[1760383879168,0.3781,4251.6,4251.5,0.42299]
[1760383879480,3.73741176,4251.6,4251.5,0.42483674]
[1760383881372,3.49741176,4251.6,4251.5,0.42483674]
[1760383881576,3.73741176,4251.6,4251.5,0.00184674]
[1760383881782,6.94521176,4251.6,4251.5,0.00184674]
[1760383882571,6.94521176,4251.6,4251.5,0.41604674]
[1760383882876,6.94521176,4251.6,4251.5,0.00184674]
[1760383884381,0.58435,4251.0,4250.8,0.42306]
[1760383884577,0.6171,4250.9,4250.8,0.42306]
[1760383884880,3.65010103,4250.9,4250.8,0.42306]
[1760383885182,3.65010103,4250.9,4250.8,0.83726]
[1760383885380,3.03300103,4250.9,4250.8,0.84024679]
[1760383885572,0.3781,4251.4,4251.0,0.1557]
[1760383885777,0.6171,4251.3,4251.0,0.1557]
[1760383885971,3.68887466,4251.3,4251.1,0.4142]
[1760383886375,3.68887466,4251.3,4251.2,0.83722]
[1760383886777,3.44987466,4251.3,4251.2,0.83722]
[1760383887280,3.68887466,4251.3,4251.2,0.83722]
[1760383887870,3.31077466,4251.3,4250.8,0.00298679]
[1760383888076,0.3781,4250.9,4250.8,0.42604679]
[1760383888279,1.04015,4250.9,4250.8,0.42604679]
[1760383888583,3.66089988,4250.9,4250.8,0.42604679]
[1760383889682,3.66089988,4250.9,4250.8,0.84024679]
[1760383890080,4.08394988,4250.9,4250.8,0.00298679]
[1760383890279,7.29174988,4250.9,4250.8,0.00298679]
[1760383890478,0.3781,4250.2,4250.1,0.42313]
[1760383890675,0.6171,4250.2,4250.1,0.42313]
[1760383890884,3.72853013,4250.2,4250.1,0.83733]
[1760383891177,3.35043013,4250.2,4250.1,0.83733]
[1760383891585,3.35043013,4250.2,4250.1,0.84003045]
[1760383891782,0.3781,4250.9,4250.3,1.05778]
[1760383892078,3.05802729,4250.5,4250.4,0.4231]
[1760383892277,3.29702729,4250.5,4250.4,0.8373]
[1760383892581,0.239,4250.5,4250.4,0.8373]
[1760383892778,3.36197629,4250.5,4250.4,0.8373]
[1760383893171,3.12297629,4250.5,4250.4,0.8373]
[1760383893479,0.239,4250.5,4250.4,0.8373]
[1760383893878,3.26211895,4250.5,4250.4,0.8373]
[1760383894277,3.79721484,4250.5,4250.4,0.8373]
[1760383894677,4.17531484,4250.5,4250.4,0.8373]
[1760383895079,3.26211895,4250.5,4250.4,0.8373]
[1760383895280,3.79724721,4250.5,4250.4,0.8373]
[1760383895980,3.79724677,4250.5,4250.4,1.3834]
[1760383896684,3.26211895,4250.5,4250.4,1.3834]
[1760383896884,4.15871895,4250.5,4250.4,1.1152]
[1760383897175,4.45485347,4250.5,4250.4,0.701]
[1760383897376,4.69385347,4250.5,4250.4,0.701]
[1760383897779,4.69385347,4250.5,4250.4,1.1152]
[1760383898077,0.5185,4250.2,4250.1,0.42583045]
[1760383898282,0.6171,4250.2,4250.1,0.42583045]
[1760383898484,3.63102236,4250.2,4250.1,0.42583045]
[1760383898682,4.05414236,4250.2,4250.1,0.42583045]
[1760383899083,3.63102236,4250.2,4250.1,0.42583045]
[1760383899876,3.63102236,4250.2,4250.1,0.84003045]
[1760383899877,3.01392236,4250.2,4250.1,0.84003045]
[1760383900082,0.239,4250.7,4250.5,0.1557]
[1760383900282,0.239,4250.7,4250.6,0.83728]
[1760383900486,0.77359922,4250.7,4250.6,0.83728]
[1760383900689,3.882315,4250.7,4250.6,0.83728]
[1760383901884,4.260415,4250.7,4250.6,0.83728]
[1760383902084,3.882315,4250.7,4250.6,0.83728]
[1760383902278,3.643315,4250.7,4250.6,0.83728]
[1760383902478,0.53459922,4250.7,4250.6,0.83728]
[1760383902791,0.80108,4251.6,4251.3,0.423]
[1760383902986,0.3781,4251.4,4251.3,0.423]
[1760383903179,3.94316404,4251.4,4251.3,0.8372]
[1760383903383,0.53472994,4251.4,4251.3,0.8372]
[1760383903580,0.84269637,4252.1,4251.3,0.4142]
[1760383903788,0.7737847,4252.0,4251.9,0.4142]
[1760383904088,3.77798065,4252.0,4251.9,0.4142]
[1760383904385,0.7737847,4252.0,4251.9,0.4142]
[1760383904580,4.15560421,4252.0,4251.9,0.4142]
[1760383905393,3.77750421,4252.0,4251.9,0.4142]
[1760383906588,4.15430421,4252.0,4251.9,0.4142]
[1760383906992,3.91530421,4252.0,4251.9,0.4142]
[1760383907192,3.77750421,4252.0,4251.9,0.4142]
[1760383907787,3.53850421,4252.0,4251.9,0.4142]
[1760383907994,0.5347847,4252.0,4251.9,0.4142]
[1760383908289,0.00205892,4252.4,4252.3,0.81441]
[1760383908590,0.53739846,4252.4,4252.3,0.81441]
[1760383909092,0.00205892,4252.4,4252.3,0.81441]
[1760383910694,0.00205892,4252.4,4252.3,1.06641]
[1760383910993,0.00205892,4252.4,4252.3,1.31951]
[1760383911293,0.00205892,4252.4,4252.3,1.55851]
[1760383911495,0.00205892,4252.4,4252.3,1.31951]
[1760383920497,0.00205892,4252.4,4252.3,1.55851]
[1760383921496,0.26065892,4252.4,4252.3,1.31951]
[1760383921793,4.03636683,4252.4,4252.3,0.42291]
[1760383922196,4.03636683,4252.4,4252.3,0.67491]
[1760383922591,0.3969,4252.3,4252.2,3.2078]
[1760383922792,0.9121,4252.3,4252.2,3.63072]
[1760383923096,3.99684015,4252.3,4252.2,4.27422]
[1760383923501,3.99684015,4252.3,4252.2,4.52732]
[1760383923696,3.59994015,4252.3,4252.2,4.52732]
[1760383924105,3.99684015,4252.3,4252.2,4.52732]
[1760383924707,3.99684015,4252.3,4252.2,3.63072]
[1760383924912,3.99684015,4252.3,4252.2,0.42292]
[1760383925113,4.41975015,4252.3,4252.2,0.42292]
[1760383925301,0.5152,4252.1,4252.0,0.67494]
[1760383925611,4.0314258,4252.1,4252.0,0.67494]
[1760383926206,1.33506,4251.8,4251.7,0.42297]
[1760383926408,1.33512,4251.3,4251.1,0.42303]
[1760383926710,1.0668,4251.0,4250.7,3.2078]
[1760383926913,1.33516,4250.9,4250.7,0.42307]
[1760383927106,0.9121,4250.8,4250.7,0.42307]
[1760383927415,4.0137009,4250.8,4250.7,0.42307]
[1760383928417,0.5152,4250.3,4250.2,3.63092]
[1760383928722,3.91235075,4250.3,4250.2,3.63092]
[1760383928917,3.00025075,4250.3,4250.2,4.52752]
[1760383929118,0.6555,4251.4,4251.3,1.31961]
[1760383929319,1.42783495,4251.4,4251.3,1.31961]
[1760383929514,4.55039485,4251.4,4251.3,1.31961]
[1760383929818,3.1225599,4251.4,4251.3,1.31961]
[1760383930615,3.8633,4251.9,4251.8,0.252]
[1760383930819,1.42785897,4251.9,4251.8,0.6435]
[1760383931018,4.54484829,4251.9,4251.8,1.06646]
[1760383931514,4.54484829,4251.9,4251.8,1.31956]
[1760383931719,4.80144829,4251.9,4251.8,0.42296]
[1760383931914,4.80144829,4251.9,4251.8,1.31956]
[1760383932411,3.61458932,4251.9,4251.8,1.31956]
[1760383932717,4.26808932,4251.9,4251.8,0.92806]
[1760383932917,3.61458932,4251.9,4251.8,1.31956]
[1760383933213,4.01148932,4251.9,4251.8,1.31956]
[1760383934212,4.26808932,4251.9,4251.8,1.31956]
[1760383934615,4.26808932,4251.9,4251.8,0.67496]
[1760383934820,4.26808932,4251.9,4251.8,0.42296]
[1760383935113,4.02908932,4251.9,4251.8,1.31956]
[1760383935320,4.26808932,4251.9,4251.8,1.31956]
[1760383935516,3.11698932,4251.9,4251.8,1.31956]
[1760383938216,3.60858932,4251.9,4251.8,0.42296]
[1760383938418,3.99638932,4251.9,4251.8,1.08666]
[1760383938619,3.99638932,4251.9,4251.8,1.33636]
[1760383939312,3.11698932,4251.9,4251.8,1.33636]
[1760383939510,0.00205892,4252.4,4252.3,1.33631]
[1760383939812,3.26952079,4252.4,4252.3,1.33631]
[1760383940213,4.14892079,4252.4,4252.3,1.33631]
[1760383940414,4.68265868,4252.4,4252.3,0.93551]
[1760383940626,0.8794,4251.9,4251.8,3.4707]
[1760383940824,0.8794,4251.9,4251.8,3.89366]
[1760383941016,3.90115353,4251.9,4251.8,3.63076]
[1760383941216,4.4349541,4251.9,4251.8,3.63076]
[1760383941415,0.2435,4251.0,4250.9,0.42305]
[1760383941726,4.29804849,4251.0,4250.3,0.6398]
[1760383941917,4.29804849,4251.0,4250.3,0.4008]
[1760383942221,3.91024849,4251.0,4250.8,0.42306]
[1760383942416,0.8794,4250.9,4250.8,0.42306]
[1760383942821,3.93865123,4250.9,4250.8,0.42306]
[1760383943722,0.8794,4250.4,4250.3,0.42311]
[1760383944023,0.8794,4250.2,4250.1,0.42583045]
[1760383944320,4.16929146,4250.2,4250.1,0.42583045]
[1760383944524,4.16929146,4250.2,4250.1,0.00270045]
[1760383945421,4.16929146,4250.2,4250.1,0.91610045]
[1760383945630,3.53339146,4250.2,4250.1,0.91610045]
[1760383945918,4.16929146,4250.2,4250.1,0.91610045]
[1760383946118,4.16929146,4250.2,4250.1,0.26560045]
[1760383948428,4.16929146,4250.2,4250.1,0.00270045]
[1760383950926,4.16929146,4250.2,4250.1,0.26560045]
[1760383951122,3.05089146,4250.2,4250.1,0.91610045]
[1760383951327,3.2078,4250.6,4250.5,0.6673]
[1760383951530,3.4468,4250.6,4250.5,1.0681]
[1760383951719,7.36189128,4250.6,4250.5,0.9134]
[1760383952326,4.15409128,4250.6,4250.5,0.9134]
[1760383952526,4.15409128,4250.6,4250.5,1.33649]
[1760383952725,0.6313,4251.1,4251.0,0.93564]
[1760383952932,0.8703,4251.1,4251.0,1.33644]
[1760383953120,3.36642198,4251.1,4251.0,1.33644]
[1760383953434,0.6313,4252.0,4251.9,0.42295]
[1760383953621,0.6313,4252.3,4252.2,0.9134]
[1760383953828,1.65190069,4252.3,4252.2,0.5126]
[1760383954125,4.20148255,4252.3,4252.2,0.5126]
[1760383954329,4.20148255,4252.3,4252.2,0.9134]
[1760383954728,4.73505993,4252.3,4252.2,0.9134]
[1760383955030,4.20148255,4252.3,4252.2,0.9134]
[1760383955424,4.20148255,4252.3,4251.7,4.26522]
[1760383955425,0.3878,4251.8,4251.7,3.2078]
[1760383955634,0.646,4251.5,4251.4,0.423]
[1760383955832,0.8794,4251.1,4251.0,0.68594]
[1760383956032,0.2435,4250.8,4250.7,0.2629]
[1760383956232,1.1184,4250.8,4250.1,0.40350045]
[1760383956433,1.0338,4250.5,4250.4,0.4231]
[1760383956733,4.2983246,4250.5,4250.4,0.686]
[1760383959635,4.2983246,4250.5,4250.4,0.2629]
[1760383959837,0.8794,4250.4,4250.3,0.42311]
[1760383960040,0.8794,4250.4,4250.3,0.2629]
[1760383960334,3.94511129,4250.4,4250.3,0.68601]
[1760383961840,3.94511129,4250.4,4250.1,0.40350045]
[1760383961841,0.2435,4250.2,4250.1,0.00270045]
[1760383962135,4.17472374,4250.2,4250.1,0.00270045]
[1760383962335,4.7085869,4250.2,4250.1,0.00270045]
[1760383962640,0.6313,4249.0,4248.9,4.54445]
[1760383962839,1.1184,4249.0,4248.9,1.33665]
[1760383963039,4.12073773,4249.0,4248.9,1.33665]
[1760383963234,4.12073773,4249.0,4248.9,0.93585]
[1760383963433,4.27513773,4249.0,4248.9,0.42325]
[1760383963635,4.27798514,4249.0,4248.9,0.42533853]
[1760383964544,4.27798514,4249.0,4248.9,0.00208853]
[1760383965636,4.12358514,4249.0,4248.9,0.65288853]
[1760383965841,3.24418514,4249.0,4248.9,4.11158853]
[1760383966140,0.00284741,4249.0,4248.9,4.11158853]
[1760383968946,0.8672,4250.6,4250.5,0.8975]
[1760383969139,1.1062,4250.6,4250.5,0.8975]
[1760383969340,4.2212328,4250.6,4250.5,0.2514]
[1760383969840,4.22411059,4250.6,4250.5,0.2514]
[1760383970041,4.22411059,4250.6,4250.5,0.6454]
[1760383970844,3.98511059,4250.6,4250.5,0.6454]
[1760383971145,4.22411059,4250.6,4250.5,0.6454]
[1760383971447,4.75798775,4250.6,4250.5,0.8975]
[1760383971849,0.1512,4250.5,4250.2,0.17]
[1760383972043,0.8672,4249.7,4249.6,4.27638]
[1760383972351,0.8672,4249.7,4249.6,1.06858]
[1760383972533,3.97565139,4249.7,4249.6,0.67458]
[1760383972739,3.97565139,4249.7,4249.6,1.32068]
[1760383972951,4.21465139,4249.7,4249.6,1.32068]
[1760383973244,3.97565139,4249.7,4249.6,1.32068]
[1760383973443,4.21465139,4249.7,4249.6,1.32068]
[1760383975848,4.21465139,4249.7,4249.6,0.92668]
[1760383976048,4.21465139,4249.7,4249.6,0.42318]
[1760383976249,1.0184,4249.5,4249.4,0.42319]
[1760383976548,4.04293903,4249.5,4249.4,0.42319]
[1760383977453,4.04293903,4249.5,4249.4,0.67459]
[1760383977746,4.28193903,4249.5,4249.4,0.67459]
[1760383978347,4.28193903,4249.5,4249.4,0.42319]
[1760383979250,4.28193903,4249.5,4249.4,0.67459]
[1760383979951,4.28193903,4249.5,4249.4,0.42319]
[1760383980144,4.28193903,4249.5,4248.9,3.60388853]
[1760383980358,1.44164,4249.0,4248.9,0.00208853]
[1760383980655,5.22346201,4249.0,4248.9,0.00208853]
[1760383980846,1.0184,4248.5,4248.4,0.3134]
[1760383981047,1.2574,4248.5,4248.4,0.3134]
[1760383981252,1.2574,4248.5,4248.2,0.42332]
[1760383981253,0.4826,4248.3,4248.2,0.42332]
[1760383981449,0.6338,4248.0,4247.9,3.63115]
[1760383981755,4.18597405,4248.0,4247.9,4.13728083]
[1760383981945,4.18597405,4248.0,4247.9,4.53128083]
[1760383982449,4.18597405,4248.0,4247.9,3.88518083]
[1760383982751,4.33717405,4248.0,4247.9,3.88518083]
[1760383983551,4.33717405,4248.0,4247.9,3.63378083]
[1760383983754,4.33717405,4248.0,4247.9,0.00263083]
[1760383985354,4.87098395,4248.0,4247.9,0.00263083]
[1760383986046,4.33717405,4248.0,4247.9,0.00263083]
[1760383988355,4.76051405,4248.0,4247.9,0.00263083]
[1760383988852,4.76051405,4248.0,4247.9,0.42598083]
[1760383989251,4.76051405,4248.0,4247.9,0.00263083]
[1760383989452,5.29467865,4248.0,4247.9,0.00263083]
[1760383991052,4.76051405,4248.0,4247.9,0.00263083]
[1760383992052,4.52151405,4248.0,4247.9,0.00263083]
[1760383992252,5.29458035,4248.0,4247.9,0.00263083]
[1760383992960,5.05558035,4248.0,4247.9,0.00263083]
[1760383993156,5.29458035,4248.0,4247.9,0.00263083]
[1760383993359,5.05558035,4248.0,4247.9,0.00263083]
[1760383993656,5.29458035,4248.0,4247.9,0.00263083]
[1760383993859,4.76051405,4248.0,4247.9,0.00263083]
[1760383995466,3.94697405,4248.0,4247.9,1.27988083]
[1760383995668,3.31877405,4248.0,4247.9,4.48768083]
[1760383995966,3.4592,4248.6,4248.5,0.2414]
[1760383996166,3.2078,4248.6,4248.5,1.41449]
[1760383996469,3.4592,4249.1,4249.0,1.26714]
[1760383996666,3.58611665,4248.6,4248.5,0.66469]
[1760383996858,3.07881665,4248.8,4248.5,1.26719]
[1760383997064,3.8284,4249.1,4249.0,0.90354]
[1760383997264,4.0843,4249.1,4249.0,0.90354]
[1760383997469,7.40211665,4249.1,4248.8,0.3636]
[1760383997676,0.6206,4248.9,4248.8,0.2414]
[1760383997973,4.1545433,4248.9,4248.8,0.2414]
[1760383998373,4.1545433,4248.9,4248.8,0.66466]
[1760383998674,4.1545433,4248.9,4248.8,1.26716]
[1760383998870,4.1545433,4248.9,4248.8,1.02826]
[1760383999675,4.1545433,4248.9,4248.8,1.26716]
[1760384000066,3.0390433,4248.9,4248.8,1.26716]
[1760384000372,0.239,4248.9,4248.8,1.26716]
[1760384000676,3.29358455,4248.9,4248.8,1.26716]
[1760384001171,3.2078,4250.1,4250.0,0.2414]
[1760384001372,0.6491,4250.0,4249.9,0.42315]
[1760384001572,4.07288455,4250.0,4249.9,0.2414]
[1760384001871,0.6251,4249.0,4248.9,0.42325]
[1760384002076,0.6251,4249.0,4248.8,0.66466]
[1760384002077,0.6251,4248.9,4248.8,0.66466]
[1760384002271,0.3808,4249.0,4248.6,0.42328]
[1760384002272,0.5073,4248.7,4248.6,0.42328]
[1760384002573,4.18854039,4248.7,4248.6,0.2414]
[1760384002877,4.18854039,4248.7,4248.6,0.605]
[1760384003264,3.32444039,4248.7,4248.6,0.8439]
[1760384003465,3.31204039,4248.7,4248.6,0.8439]
[1760384004465,3.81934039,4248.7,4248.3,3.2078]
[1760384004770,3.81934039,4248.7,4248.3,4.23611]
[1760384004771,0.8765,4248.4,4248.3,4.23611]
[1760384005076,1.1155,4248.4,4248.3,4.47501]
[1760384005271,4.14901558,4248.4,4248.3,4.47501]
[1760384006380,4.14901558,4248.4,4248.3,3.2078]
[1760384007577,4.6842668,4248.4,4248.3,3.2078]
[1760384008073,0.5073,4248.1,4248.0,0.42334]
[1760384008271,1.1155,4248.1,4248.0,0.66474]
[1760384008470,4.20284816,4248.1,4248.0,0.66474]
[1760384009175,4.20284816,4248.1,4248.0,0.42334]
[1760384009370,4.73851251,4248.1,4248.0,0.42334]
[1760384009575,4.73851251,4248.1,4248.0,0.66474]
[1760384009777,4.73851251,4248.1,4248.0,1.02834]
[1760384010366,4.73851251,4248.1,4248.0,0.66474]
[1760384010367,5.16184251,4248.1,4248.0,0.66474]
[1760384010571,5.16184251,4248.1,4248.0,0.2414]
[1760384010973,5.16184251,4248.1,4247.9,0.42598083]
[1760384011173,1.0183,4248.0,4247.9,0.66738083]
[1760384011478,4.43815566,4248.0,4247.9,0.00263083]
[1760384011880,4.97387748,4248.0,4247.9,0.00263083]
[1760384017780,5.21287748,4248.0,4247.9,0.00263083]
[1760384018380,4.55053748,4248.0,4247.9,0.48293083]
[1760384018587,3.53223748,4248.0,4247.9,1.26988083]
[1760384018880,4.15283748,4248.0,4247.9,1.26988083]
[1760384019078,0.6206,4248.5,4248.4,1.2672]
[1760384019274,1.83324625,4248.5,4248.4,0.8439]
[1760384019483,4.8442443,4248.5,4248.4,0.8439]
[1760384019673,4.4209543,4248.5,4248.4,1.2672]
[1760384019876,4.8442443,4248.5,4248.4,0.8439]
[1760384020483,3.5444543,4248.5,4248.4,1.2672]
[1760384020788,0.8765,4249.0,4248.9,0.8439]
[1760384020982,0.8765,4249.0,4248.4,0.239]
[1760384020983,0.8765,4248.3,4248.2,1.26722]
[1760384021284,0.8765,4248.3,4248.2,1.50622]
[1760384021683,0.8765,4248.3,4248.2,1.26722]
[1760384021883,0.8765,4248.3,4248.2,1.50622]
[1760384022086,0.2514,4248.3,4248.2,1.50622]
[1760384022283,0.42327,4248.8,4248.6,0.42328]
[1760384022482,1.04081046,4248.7,4248.6,0.66468]
[1760384022682,4.14315932,4248.7,4248.6,0.66468]
[1760384022986,4.51235932,4248.7,4248.6,0.66468]
[1760384024183,0.56505,4249.0,4248.6,0.66468]
[1760384024184,3.2078,4249.6,4249.4,0.4232]
[1760384024378,0.2514,4249.5,4249.4,1.2671]
[1760384024588,3.24659741,4249.5,4249.4,1.2671]
[1760384025087,2.99519741,4249.5,4249.4,1.2671]
[1760384025488,3.24659741,4249.5,4249.4,1.2671]
[1760384026587,3.60879741,4249.5,4249.4,1.2671]
[1760384026789,3.84049741,4249.5,4249.4,1.2671]
[1760384027289,2.99519741,4249.5,4249.4,1.2671]
[1760384028286,3.4594,4250.1,4250.0,0.4716]
[1760384028492,3.4594,4250.1,4250.0,0.858]
[1760384028690,7.20806762,4250.1,4250.0,0.858]
[1760384029293,4.00026762,4250.1,4250.0,0.858]
[1760384029692,0.8786,4249.2,4249.1,3.4433]
[1760384029896,0.8786,4249.2,4248.8,0.42326]
[1760384030088,1.0304,4248.5,4248.4,0.5501]
[1760384030391,1.0304,4248.5,4248.4,0.7891]
[1760384030893,0.8786,4248.5,4248.4,1.0252]
[1760384031096,0.2516,4248.8,4248.7,0.2355]
[1760384031295,0.8786,4248.8,4248.7,0.2355]
[1760384031495,3.95064819,4248.8,4248.7,0.65877]
[1760384032184,3.32364819,4248.8,4248.7,1.28127]
[1760384032591,3.32364819,4248.8,4248.7,1.52027]